bitfinex-derivatives/quotes_ETHF0:USTF0_20250422
["timestamp","ask_amount","ask_price","bid_price","bid_amount"]
[1745341216242,0.00674333,1694.0,1693.9,1.17997]
[1745341216444,0.00674333,1694.0,1693.9,3.72397]
[1745341217139,6.322,1694.0,1693.9,8.72397]
[1745341217845,7.08953,1694.6,1694.4,1.17959]
[1745341218040,1.64706457,1694.5,1694.4,4.38739]
[1745341218744,1.64706457,1694.5,1694.4,7.03289]
[1745341218944,47.122,1694.6,1694.5,1.17955]
[1745341219148,40.8139,1694.6,1694.5,2.86845]
[1745341219849,40.8,1694.6,1694.5,2.86845]
[1745341220038,1.17932,1694.9,1694.6,1.17947]
[1745341220242,1.17932,1694.9,1694.6,6.14157]
[1745341220547,40.8,1694.8,1694.6,7.06217]
[1745341221052,40.8,1694.8,1694.7,1.23822534]
[1745341221343,6.322,1694.8,1694.7,1.23822534]
[1745341221739,41.6653,1695.1,1695.0,1.1792]
[1745341221934,40.8,1695.1,1695.0,1.1792]
[1745341222140,47.122,1695.1,1695.0,1.1792]
[1745341222340,48.8305,1695.1,1694.9,7.62637577]
[1745341222549,1.7085,1695.0,1694.9,7.62637577]
[1745341222749,1.7085,1695.0,1694.9,7.70696547]
[1745341222943,6.322,1695.1,1695.0,1.1792]
[1745341223149,1.6915,1695.2,1695.1,1.17913]
[1745341223448,2.87061,1695.2,1695.0,0.9021]
[1745341223644,2.87061,1695.2,1695.0,2.0813]
[1745341223844,1.6109103,1695.1,1695.0,5.2891]
[1745341224344,7.9329103,1695.1,1695.0,5.2891]
[1745341224552,7.9329103,1695.1,1695.0,6.9003]
[1745341225151,6.322,1695.1,1695.0,6.9003]
[1745341225645,6.322,1695.1,1695.0,12.7223]
[1745341227253,6.322,1695.1,1695.0,17.7223]
[1745341227948,2.12353,1695.7,1695.5,1.17882]
[1745341228148,1.17882,1695.6,1695.4,9.06967]
[1745341228350,8.44557,1695.7,1695.5,4.38663]
[1745341228547,1.17881,1695.6,1695.4,5.86187]
[1745341228743,7.2668,1695.7,1695.4,5.86187]
[1745341228939,3.2078,1696.4,1695.6,3.2078]
[1745341229146,5.88926,1697.0,1696.0,3.2078]
[1745341229147,3.2078,1696.7,1696.0,3.2078]
[1745341229352,3.2078,1696.7,1695.8,2.94663]
[1745341229353,1.7145,1696.5,1696.2,4.38611]
[1745341229657,4.9223,1696.5,1696.2,0.00886577]
[1745341229853,1.813,1696.4,1696.2,0.00886577]
[1745341230050,1.7145,1696.3,1695.7,5.0152]
[1745341230355,1.7145,1696.3,1695.9,3.2078]
[1745341230557,1.7145,1696.3,1696.1,1.17841]
[1745341231051,1.7145,1696.3,1695.9,3.2078]
[1745341231353,1.17867,1695.8,1695.3,6.15527]
[1745341231555,1.7145,1695.7,1695.4,1.17888]
[1745341231750,1.7145,1695.7,1695.2,6.436]
[1745341231751,3.81495,1695.7,1695.2,6.436]
[1745341232061,2.6362,1695.7,1695.3,3.2078]
[1745341232255,8.9582,1695.7,1695.6,1.17879]
[1745341232948,8.9582,1695.7,1695.3,3.21666577]
[1745341233455,10.13695,1695.7,1695.5,1.17885]
[1745341233654,8.0365,1695.7,1695.5,1.1788]
[1745341233852,10.09263,1695.7,1695.5,1.1788]
[1745341234247,10.09263,1695.7,1695.3,4.11286577]
[1745341234248,8.9139,1695.7,1695.3,4.11286577]
[1745341234559,8.9139,1695.7,1695.3,7.06034577]
[1745341234854,8.9139,1695.7,1695.6,1.17879]
[1745341235354,49.7139,1695.7,1695.6,1.17879]
[1745341235847,48.8365,1695.7,1695.6,1.17879]
[1745341236047,48.8365,1695.7,1695.3,6.16413577]
[1745341236247,0.9302,1695.6,1695.5,1.17881]
[1745341236447,2.6199,1695.6,1695.5,1.17881]
[1745341236649,1.6897,1695.6,1695.5,4.38661]
[1745341236848,1.6897,1695.6,1695.5,1.17881]
[1745341237260,8.0117,1695.6,1695.5,4.38661]
[1745341237557,8.0117,1695.6,1695.5,1.17881]
[1745341238157,8.0117,1695.6,1695.5,4.38661]
[1745341238361,8.0117,1695.6,1695.5,6.02551]
[1745341239055,8.0117,1695.6,1695.5,2.81771]
[1745341239261,8.0117,1695.6,1695.5,6.02551]
[1745341239967,6.30426846,1695.6,1695.5,11.02551]
[1745341240359,5.78386846,1695.6,1695.5,11.02551]
[1745341240559,5.78386846,1695.6,1695.5,6.02551]
[1745341241356,5.78386846,1695.6,1695.5,11.02551]
[1745341242059,4.39495577,1696.4,1696.1,1.17843]
[1745341242355,4.39495577,1696.4,1695.4,1.8908]
[1745341242356,1.7055,1696.3,1696.2,1.17837]
[1745341242551,42.5055,1696.3,1696.1,4.38621]
[1745341242750,42.5055,1696.3,1696.1,3.2078]
[1745341242956,1.7055,1696.2,1696.0,5.84749]
[1745341243154,2.6054,1696.2,1696.0,5.84749]
[1745341243655,1.7055,1696.1,1696.0,5.84749]
[1745341244253,8.0275,1696.1,1696.0,5.84749]
[1745341244557,8.0275,1696.1,1696.0,7.46299]
[1745341244751,6.322,1696.1,1696.0,7.46299]
[1745341247167,6.322,1696.1,1696.0,5.84749]
[1745341247365,6.322,1696.1,1695.9,3.2078]
[1745341247366,11.322,1696.1,1695.9,3.2078]
[1745341247568,3.5586,1696.0,1695.9,3.2078]
[1745341247863,1.7586,1696.0,1695.9,1.17858]
[1745341248259,8.0806,1696.0,1695.9,4.38638]
[1745341248660,8.0806,1696.0,1695.9,7.00538]
[1745341249067,6.322,1696.0,1695.9,7.00538]
[1745341250065,6.322,1696.0,1695.9,5.24988]
[1745341250258,6.322,1696.0,1695.9,4.38638]
[1745341250458,7.2167,1696.0,1695.9,4.38638]
[1745341251568,6.322,1696.0,1695.9,1.17858]
[1745341251866,13.9726,1696.0,1695.7,3.2078]
[1745341252062,1.17865,1695.8,1695.6,1.17874]
[1745341252261,3.5488,1695.7,1695.6,4.38654]
[1745341252462,3.5488,1695.7,1695.6,1.17874]
[1745341252657,4.72752,1695.7,1695.4,4.668]
[1745341252861,1.7559,1695.6,1695.5,1.17884]
[1745341253065,2.93469,1695.6,1695.4,5.84688]
[1745341253272,1.17886,1695.5,1695.3,4.39561577]
[1745341253567,1.6437,1695.4,1695.3,4.39561577]
[1745341253770,2.82263,1695.4,1695.3,0.00886577]
[1745341253966,7.82263,1695.4,1695.3,0.00886577]
[1745341254265,14.14463,1695.4,1695.3,0.00886577]
[1745341255363,54.94463,1695.4,1695.3,0.00886577]
[1745341256669,49.94463,1695.4,1695.3,0.00886577]
[1745341257165,1.179,1695.3,1695.2,0.02356]
[1745341257366,1.17913,1695.1,1695.0,3.2078]
[1745341257771,41.97913,1695.1,1695.0,3.2078]
[1745341258075,1.17927,1694.9,1694.8,1.17932]
[1745341258263,54.91535,1695.1,1694.7,4.38717]
[1745341258466,1.17934,1694.9,1694.7,4.39603577]
[1745341258663,2.81704,1694.8,1694.7,4.39603577]
[1745341258971,1.6377,1694.8,1694.7,4.39603577]
[1745341259170,7.9597,1694.8,1694.7,4.39603577]
[1745341260472,9.13904,1694.8,1694.7,6.13073577]
[1745341260772,9.13904,1694.8,1694.7,4.39603577]
[1745341261670,7.9597,1694.8,1694.7,4.39603577]
[1745341261865,5.05084423,1694.8,1694.7,9.39603577]
[1745341262079,5.05084423,1694.8,1694.7,11.13073577]
[1745341262765,2.10038249,1694.8,1694.7,11.13073577]
[1745341263160,6.322,1694.8,1694.7,11.13073577]
[1745341264468,6.322,1694.8,1694.7,3.21666577]
[1745341264769,6.322,1694.8,1694.7,4.39607577]
[1745341265080,6.322,1694.8,1694.7,11.00487577]
[1745341265272,3.3721,1694.8,1694.7,11.00487577]
[1745341265573,2.9499,1694.8,1694.7,11.00487577]
[1745341266179,1.7362,1695.2,1695.1,1.17913]
[1745341266475,1.7362,1695.2,1695.1,4.38693]
[1745341266773,0.00886577,1695.5,1695.4,1.17893]
[1745341266969,0.00886577,1695.5,1695.4,4.38673]
[1745341267170,6.33086577,1695.5,1695.4,1.17893]
[1745341267472,6.33086577,1695.5,1695.4,4.38673]
[1745341267773,6.33086577,1695.5,1695.4,5.24703]
[1745341267980,1.8565,1695.9,1695.4,5.24703]
[1745341267981,3.2078,1696.1,1695.4,9.9862]
[1745341268180,0.4796994,1696.7,1695.4,9.9862]
[1745341268181,1.6926,1696.4,1695.9,6.15419]
[1745341268376,1.6926,1696.4,1696.2,1.17835]
[1745341268578,40.8,1696.3,1696.2,1.17835]
[1745341268785,40.8,1696.3,1696.1,3.2078]
[1745341269081,1.17858,1695.9,1695.6,7.8778]
[1745341269283,1.6319,1695.8,1695.6,9.05658]
[1745341269483,1.6319,1695.8,1695.6,9.06544577]
[1745341269683,1.6319,1695.8,1695.7,1.17872]
[1745341269884,1.6319,1695.8,1695.7,2.92342]
[1745341270084,7.9539,1695.8,1695.6,9.06542577]
[1745341270472,1.17872,1695.7,1695.6,3.21666577]
[1745341270677,3.72562,1695.7,1695.6,0.00886577]
[1745341270985,2.5469,1695.7,1695.6,3.21666577]
[1745341271187,10.04762,1695.7,1695.6,3.21666577]
[1745341271487,15.04762,1695.7,1695.6,0.00886577]
[1745341271685,1.179,1695.3,1695.2,3.2078]
[1745341271888,1.17911,1695.2,1694.9,9.05602]
[1745341272187,4.62991,1695.2,1694.6,0.8992]
[1745341272488,1.17953,1694.6,1694.3,8.99161168]
[1745341272686,1.6822,1694.5,1694.3,7.81400202]
[1745341272980,1.17962,1694.4,1694.3,7.81400202]
[1745341273173,7.50162,1694.4,1694.3,0.00886577]
[1745341273988,12.50162,1694.4,1694.3,0.00886577]
[1745341274181,12.50162,1694.4,1694.0,2.94435]
[1745341274182,11.322,1694.4,1694.0,3.2078]
[1745341274481,1.17982,1694.2,1694.0,4.3877]
[1745341274686,42.4079,1694.1,1694.0,4.3877]
[1745341275187,42.4079,1694.1,1694.0,10.7097]
[1745341275881,40.8,1694.1,1694.0,10.7097]
[1745341276080,40.8,1694.1,1694.0,6.01]
[1745341276277,1.18838577,1694.6,1694.3,1.17967]
[1745341276481,1.6079,1694.5,1694.3,1.17967]
[1745341276689,40.8,1694.4,1694.2,3.2078]
[1745341276990,0.00886577,1694.6,1694.5,1.17955]
[1745341277195,6.32403034,1694.6,1694.5,4.38735]
[1745341279705,1.17894,1695.4,1695.1,1.1791]
[1745341279908,40.8,1695.3,1695.2,1.17904]
[1745341280094,40.8,1695.3,1695.2,1.7747]
[1745341280290,40.8,1695.3,1695.1,3.2078]
[1745341280502,42.5627,1695.3,1695.1,3.2078]
[1745341280802,42.5627,1695.3,1695.1,4.38688]
[1745341281006,42.5627,1695.3,1695.1,4.38693]
[1745341281191,47.122,1695.3,1695.2,1.17907]
[1745341281394,47.122,1695.3,1695.2,2.87227]
[1745341281591,47.122,1695.3,1695.2,1.6932]
[1745341281806,1.17907,1695.2,1695.0,0.00886577]
[1745341282001,1.7837,1695.1,1695.0,1.18806577]
[1745341282202,1.7837,1695.1,1695.0,0.00886577]
[1745341282903,7.96283,1695.1,1695.0,0.00886577]
[1745341283103,9.28483,1695.1,1695.0,0.00886577]
[1745341286210,9.28483,1695.1,1695.0,1.18806577]
[1745341286409,8.1057,1695.1,1695.0,1.18806577]
[1745341286817,9.28483,1695.1,1695.0,1.18806577]
[1745341287110,9.28483,1695.1,1695.0,0.00886577]
[1745341288008,9.28483,1695.1,1694.7,3.2078]
[1745341288009,1.17934,1694.8,1694.7,3.2078]
[1745341288410,4.58649,1694.9,1694.3,16.64203]
[1745341288710,1.17944,1694.7,1694.6,1.17947]
[1745341288903,1.17948,1694.6,1694.5,1.1795]
[1745341289104,6.322,1694.6,1694.5,4.39617577]
[1745341289303,7.50148,1694.6,1694.5,1.18837577]
[1745341289901,7.50148,1694.6,1694.5,0.00886577]
[1745341290704,9.21098,1694.6,1694.5,0.00886577]
[1745341290908,1.17962,1694.4,1694.3,3.2078]
[1745341291104,2.9489,1694.5,1694.0,4.8962]
[1745341291305,1.17979,1694.2,1694.1,1.17983]
[1745341291707,41.97979,1694.2,1694.1,1.17983]
[1745341291905,40.8,1694.2,1694.1,1.17983]
[1745341292113,47.122,1694.2,1694.1,1.17983]
[1745341292304,6.322,1694.2,1694.1,6.17983]
[1745341292505,6.322,1694.2,1694.1,7.86823]
[1745341293109,40.80886577,1694.3,1694.2,1.17976]
[1745341293309,0.00886577,1694.3,1694.2,6.01936]
[1745341294106,6.33086577,1694.3,1694.2,6.01936]
[1745341294916,6.33086577,1694.3,1694.2,11.01936]
[1745341295103,0.00886577,1694.3,1694.2,11.01936]
[1745341295511,0.00886577,1694.3,1694.2,6.01936]
[1745341295708,42.4256,1694.6,1694.5,1.17955]
[1745341295907,42.41876457,1694.6,1694.5,1.17955]
[1745341296108,47.122,1694.6,1694.5,1.17955]
[1745341296410,6.322,1694.6,1694.5,7.81435]
[1745341296713,6.31313423,1694.6,1694.5,7.81435]
[1745341297111,0.00886577,1694.7,1694.6,1.17948]
[1745341297312,0.00886577,1694.7,1694.6,4.38728]
[1745341297507,0.00886577,1694.7,1694.6,9.38728]
[1745341297910,0.9345,1695.3,1695.2,1.17907]
[1745341298109,0.9022,1695.5,1695.1,3.2078]
[1745341298316,1.17881,1695.6,1695.3,3.2078]
[1745341298503,1.17881,1695.6,1695.4,1.17892]
[1745341298708,0.9345,1695.8,1695.5,1.17883]
[1745341299012,2.11321,1695.8,1695.5,4.38663]
[1745341299213,1.6666,1695.7,1695.5,4.39549577]
[1745341299517,1.6666,1695.7,1695.6,1.17879]
[1745341299711,1.6666,1695.7,1695.6,1.7184]
[1745341299927,1.6666,1695.7,1695.5,4.39549577]
[1745341300403,7.9886,1695.7,1695.5,4.39549577]
[1745341300807,6.322,1695.7,1695.6,2.89719]
[1745341301011,6.322,1695.7,1695.6,1.7184]
[1745341301317,7.9886,1695.7,1695.6,2.89719]
[1745341301815,7.9886,1695.7,1695.5,4.39548577]
[1745341302015,9.16733,1695.7,1695.5,3.21666577]
[1745341302209,7.9886,1695.7,1695.5,4.39549577]
[1745341302514,9.16735,1695.7,1695.5,3.21666577]
[1745341302813,1.17879,1695.6,1695.5,3.21666577]
[1745341303013,6.322,1695.7,1695.5,4.39552577]
[1745341303203,8.0449,1695.7,1695.5,4.39547577]
[1745341304115,9.22365,1695.7,1695.5,3.21666577]
[1745341304517,1.17879,1695.6,1695.5,0.00886577]
[1745341304717,1.7229,1695.6,1695.5,0.00886577]
[1745341304909,2.90169,1695.6,1695.5,0.00886577]
[1745341305218,9.22369,1695.6,1695.5,0.00886577]
[1745341306014,8.0449,1695.6,1695.5,0.00886577]
[1745341306215,8.0449,1695.6,1695.5,1.18772577]
[1745341306422,9.22369,1695.6,1695.5,3.21666577]
[1745341306719,9.22369,1695.6,1695.5,0.00886577]
[1745341308120,8.0449,1695.6,1695.5,4.39552577]
[1745341308319,6.322,1695.6,1695.5,4.39552577]
[1745341309515,6.322,1695.6,1695.5,14.04952577]
[1745341310120,6.322,1695.6,1695.5,10.80292577]
[1745341312221,40.80886577,1695.8,1695.7,1.17872]
[1745341312423,40.80886577,1695.8,1695.7,4.38652]
[1745341312916,0.00886577,1695.8,1695.7,4.38652]
[1745341313118,6.33086577,1695.8,1695.7,4.38652]
[1745341314022,6.322,1695.8,1695.7,4.38652]
[1745341314218,2.85557,1696.7,1696.1,2.94608]
[1745341314424,1.6775,1696.7,1696.5,4.38595]
[1745341314622,42.4775,1696.7,1696.5,4.38595]
[1745341314825,43.65556,1696.7,1696.5,3.2078]
[1745341315026,1.17809,1696.6,1696.5,3.2078]
[1745341315224,7.9995,1696.6,1696.5,3.2078]
[1745341315525,1.17816,1696.5,1696.4,0.00886577]
[1745341315726,1.6775,1696.5,1696.4,0.00886577]
[1745341316022,2.85566,1696.5,1696.4,0.00886577]
[1745341316223,14.17766,1696.5,1696.4,0.00886577]
[1745341317124,1.17832,1696.3,1696.1,1.17843]
[1745341317424,1.7318,1696.2,1696.1,1.17843]
[1745341318224,8.0538,1696.2,1696.1,2.91463]
[1745341318819,8.0538,1696.2,1696.1,2.94406744]
[1745341319019,9.23217,1696.2,1696.1,0.02943744]
[1745341319727,9.23217,1696.2,1696.1,0.05887488]
[1745341319728,8.0538,1696.2,1696.1,0.05887488]
[1745341320429,8.0538,1696.2,1696.1,1.23731488]
[1745341320632,8.0538,1696.2,1696.1,0.05887488]
[1745341320821,6.322,1696.2,1696.1,1.23731488]
[1745341321421,7.9974,1696.2,1696.1,1.15682983]
[1745341322221,6.322,1696.2,1696.1,1.15682983]
[1745341323134,1.6754,1696.3,1696.2,1.17837]
[1745341323330,1.6754,1696.3,1696.2,4.38617]
[1745341323629,1.6754,1696.3,1696.2,4.46659561]
[1745341324022,0.9017,1696.5,1696.4,1.17823]
[1745341324223,0.9017,1696.5,1696.4,4.38603]
[1745341324224,6.322,1696.5,1696.4,4.38603]
[1745341324524,6.322,1696.5,1696.4,4.46645561]
[1745341325820,0.00886577,1696.8,1696.7,1.17802]
[1745341326021,1.75,1697.0,1696.9,1.17788]
[1745341326225,1.75,1697.0,1696.9,3.2078]
[1745341326628,1.75,1697.0,1696.9,3.28822561]
[1745341326827,1.75,1697.0,1696.9,4.46610561]
[1745341327230,6.322,1697.0,1696.9,14.11710561]
[1745341327533,1.6184,1697.5,1697.2,1.17764]
[1745341327721,41.97754,1697.4,1697.3,3.2078]
[1745341327920,41.97754,1697.4,1697.1,4.3855]
[1745341328123,1.6184,1697.3,1697.2,1.17768]
[1745341328325,1.6184,1697.3,1697.1,4.38549]
[1745341328725,6.33080421,1697.4,1697.2,0.08042561]
[1745341328928,6.33080421,1697.4,1697.3,4.38541]
[1745341329124,1.6184,1697.7,1697.6,1.1774]
[1745341329432,40.8,1698.3,1697.6,3.2078]
[1745341329632,1.17712,1698.0,1697.9,0.08042561]
[1745341329828,2.6609,1698.2,1697.9,0.08042561]
[1745341330126,2.82723965,1698.0,1697.7,4.3851]
[1745341330329,1.65011965,1698.0,1697.9,0.00883939]
[1745341330629,1.65011965,1698.0,1697.9,4.39382939]
[1745341330835,1.65011965,1698.0,1697.9,3.21663939]
[1745341331035,2.82723965,1698.0,1697.9,3.21663939]
[1745341331230,7.97211965,1698.0,1697.9,3.21663939]
[1745341331434,9.14923965,1698.0,1697.9,3.24609413]
[1745341331733,9.14923965,1698.0,1697.9,0.03829413]
[1745341332333,7.97211965,1698.0,1697.9,3.24609413]
[1745341332534,9.14923965,1698.0,1697.9,3.24609413]
[1745341332734,7.97211965,1698.0,1697.9,4.42328413]
[1745341332930,9.14923965,1698.0,1697.9,0.03829413]
[1745341333131,7.97211965,1698.0,1697.9,0.03829413]
[1745341333343,7.97211965,1698.0,1697.9,1.21548413]
[1745341333531,7.97211965,1698.0,1697.9,4.39382939]
[1745341333731,7.97211965,1698.0,1697.9,4.44480026]
[1745341333927,9.14923965,1698.0,1697.9,3.26761026]
[1745341334630,7.97211965,1698.0,1697.9,3.26761026]
[1745341334831,9.14923965,1698.0,1697.9,3.26761026]
[1745341335236,9.14923965,1698.0,1697.4,1.17754]
[1745341335237,2.9433,1697.8,1697.4,1.17754]
[1745341335532,2.5119,1697.7,1697.4,3.2078]
[1745341335739,3.2078,1699.1,1697.6,10.79997653]
[1745341335937,4.38427,1699.0,1698.4,3.2078]
[1745341336133,6.14852,1699.3,1698.5,1.7739]
[1745341336332,0.00883939,1698.9,1698.6,1.17668]
[1745341336533,0.00883939,1698.9,1698.7,1.7739]
[1745341336736,0.00883939,1698.9,1698.5,0.00883939]
[1745341337027,1.18536939,1698.9,1698.6,1.17669]
[1745341337231,6.33083939,1698.9,1698.6,1.17665]
[1745341337635,6.33083939,1698.9,1698.5,4.99053939]
[1745341337835,7.50737939,1698.9,1698.6,1.17667]
[1745341338040,6.33083939,1698.9,1698.6,1.17667]
[1745341338238,6.33083939,1698.9,1698.8,1.17657]
[1745341339041,6.33083939,1698.9,1698.8,2.89607]
[1745341339242,1.17658,1698.8,1698.5,3.21663939]
[1745341339443,7.50733939,1698.9,1698.5,4.93613939]
[1745341339647,6.33083939,1698.9,1698.6,1.17668]
[1745341339842,7.50735939,1698.9,1698.6,1.17668]
[1745341340038,6.33083939,1698.9,1698.5,4.93613939]
[1745341340241,6.33083939,1698.9,1698.8,1.17657]
[1745341340852,7.50736939,1698.9,1698.7,3.2078]
[1745341341251,6.33083939,1698.9,1698.7,4.38443]
[1745341341432,4.38437,1698.8,1698.5,1.18559939]
[1745341341746,3.2078,1698.6,1698.5,0.00883939]
[1745341342240,9.5298,1698.6,1698.5,0.00883939]
[1745341342641,15.70651,1698.6,1698.5,0.00883939]
[1745341343343,2.94212,1698.4,1697.9,4.38496]
[1745341343548,6.1501,1698.3,1697.8,6.2645]
[1745341343740,5.91,1698.4,1697.6,1.17738]
[1745341343741,3.2078,1697.9,1697.6,1.17738]
[1745341343935,3.2078,1697.9,1697.6,2.80285]
[1745341344241,41.97732,1697.8,1697.6,1.63433939]
[1745341344441,41.97729,1697.8,1697.6,2.81173939]
[1745341344643,1.17733,1697.7,1697.6,0.00883939]
[1745341344841,4.38513,1697.7,1697.6,0.00883939]
[1745341345036,1.17762,1697.3,1697.0,3.2078]
[1745341345344,3.2078,1697.1,1696.3,0.45937623]
[1745341345541,1.17805,1696.7,1696.3,1.17825]
[1745341345752,3.2078,1696.7,1696.1,2.94611]
[1745341345947,3.2078,1696.9,1696.2,4.58147]
[1745341346249,0.00883939,1696.6,1696.4,1.17819]
[1745341346550,0.00883939,1696.6,1696.2,1.64443939]
[1745341346551,3.2078,1696.5,1696.2,1.64443939]
[1745341347144,1.17827,1696.4,1696.2,1.64443939]
[1745341347350,3.2078,1696.3,1696.2,0.00883939]
[1745341348949,3.2078,1696.3,1696.2,1.18720939]
[1745341349149,0.00883939,1696.6,1696.5,1.17816]
[1745341350254,0.00883939,1696.6,1696.5,7.50016]
[1745341350445,0.00883939,1696.6,1696.5,6.322]
[1745341350944,0.00883939,1696.6,1696.5,7.50016]
[1745341351146,0.00883939,1696.6,1696.4,2.92299]
[1745341351654,1.18697939,1696.6,1696.3,9.02707]
[1745341351853,1.17819,1696.5,1696.3,4.641]
[1745341352241,4.38599,1696.5,1696.2,2.93197939]
[1745341352445,3.2078,1696.5,1696.3,1.17829]
[1745341352955,4.38601,1696.5,1696.2,2.93198939]
[1745341353146,3.2078,1696.5,1696.2,0.00883939]
[1745341353353,1.1783,1696.3,1696.2,0.00883939]
[1745341354146,3.2078,1696.3,1696.2,0.00883939]
[1745341354852,4.9363,1696.3,1696.2,0.00883939]
[1745341355255,4.9363,1696.3,1696.2,1.18720939]
[1745341355657,3.2078,1696.5,1696.2,1.18720939]
[1745341355871,3.21663939,1696.6,1696.5,1.17816]
[1745341358358,0.00883939,1696.6,1696.5,1.17816]
[1745341358551,3.21663939,1696.6,1696.5,1.17816]
[1745341358858,3.21663939,1696.6,1696.3,4.56666]
[1745341358859,1.17821,1696.5,1696.3,1.6209]
[1745341359059,2.89579,1696.5,1696.3,2.79918]
[1745341359251,4.38605,1696.4,1696.2,1.18718939]
[1745341359452,1.7176,1696.3,1696.2,1.18718939]
[1745341361254,0.00883939,1696.6,1696.5,1.17816]
[1745341361661,0.00883939,1696.6,1696.5,6.17816]
[1745341361857,7.8508,1697.0,1696.5,6.17816]
[1745341362160,7.8508,1697.0,1696.6,4.57222]
[1745341362462,7.8508,1697.0,1696.9,1.17788]
[1745341362463,3.2078,1697.0,1696.9,1.17788]
[1745341362963,6.8243,1697.4,1697.2,1.17761]
[1745341363260,4.9351,1697.4,1697.3,1.17761]
[1745341363858,6.11264,1697.4,1697.2,1.17766]
[1745341364056,6.11264,1697.4,1697.2,1.735]
[1745341364263,4.9351,1697.4,1697.1,0.00883939]
[1745341364463,1.17761,1697.3,1697.1,0.00883939]
[1745341364664,1.7273,1697.2,1697.1,1.18658939]
[1745341364855,3.2078,1697.4,1697.1,0.00883939]
[1745341365055,4.9351,1697.4,1697.3,1.17761]
[1745341365364,3.2078,1697.4,1697.3,1.17761]
[1745341365565,40.80883939,1697.5,1697.4,1.17754]
[1745341365764,1.17755,1697.4,1697.2,1.735]
[1745341365962,1.17761,1697.3,1697.2,1.735]
[1745341366264,1.17761,1697.3,1697.1,0.00883939]
[1745341366265,4.38543,1697.3,1697.1,0.00883939]
[1745341366458,1.6125,1697.2,1697.1,0.00883939]
[1745341366657,1.6125,1697.2,1697.1,1.18658939]
[1745341366963,1.6125,1697.2,1697.1,0.00883939]
[1745341367163,2.79018,1697.2,1697.1,0.00883939]
[1745341368165,1.17795,1696.8,1696.7,1.7219]
[1745341368465,3.2078,1696.8,1696.5,1.7219]
[1745341368666,4.38577,1696.8,1696.6,1.17805]
[1745341368866,4.38577,1696.8,1696.5,2.90001]
[1745341368867,1.17803,1696.7,1696.5,2.90001]
[1745341369063,1.6826,1696.7,1696.5,2.90004]
[1745341369368,2.86064,1696.7,1696.5,2.90004]
[1745341369563,6.06844,1696.7,1696.5,2.90004]
[1745341369769,6.06844,1696.7,1696.5,1.7219]
[1745341369963,6.06844,1696.7,1696.5,2.90005]
[1745341370462,1.17809,1696.6,1696.5,1.7219]
[1745341370655,6.06846,1696.7,1696.5,1.17816]
[1745341371059,4.8904,1696.7,1696.5,1.7493]
[1745341371370,4.8904,1696.7,1696.6,1.17809]
[1745341371563,3.2078,1696.7,1696.6,1.17809]
[1745341372661,3.2078,1696.9,1696.7,1.17798]
[1745341372862,3.2078,1696.9,1696.8,1.17795]
[1745341373369,3.2078,1697.1,1697.0,1.17776]
[1745341373771,4.38555,1697.1,1696.9,1.6213]
[1745341374066,1.17781,1697.0,1696.9,1.6213]
[1745341374266,1.17791,1696.9,1696.7,4.642]
[1745341374568,2.93947,1696.8,1696.6,1.6213]
[1745341374767,1.17802,1696.7,1696.6,1.6213]
[1745341374972,4.38582,1696.7,1696.6,1.6213]
[1745341375267,3.2078,1696.7,1696.4,4.65083939]
[1745341375457,4.38596,1696.5,1696.4,0.00883939]
[1745341375656,3.2078,1696.5,1696.4,0.00883939]
[1745341375861,4.38596,1696.5,1696.4,0.00883939]
[1745341376670,4.38596,1696.5,1695.8,84.72934]
[1745341376671,1.17844,1696.2,1695.8,11.97642]
[1745341376871,1.6076,1696.1,1696.0,1.17847]
[1745341377075,2.78605,1696.1,1695.9,2.88192]
[1745341377376,44.0078,1696.2,1696.1,1.17844]
[1745341377573,45.18619,1696.2,1696.0,1.17845]
[1745341377874,45.18619,1696.2,1696.1,1.6989]
[1745341378064,44.0078,1696.2,1696.1,1.6989]
[1745341378380,45.18617,1696.2,1696.1,1.6989]
[1745341378870,44.0078,1696.2,1696.1,2.87734]
[1745341379064,11.954,1696.5,1696.3,1.17828]
[1745341379371,6.044,1696.5,1696.3,1.17828]
[1745341379570,40.8,1696.4,1696.3,1.17828]
[1745341380570,4.8658,1696.5,1696.3,1.17828]
[1745341380762,6.04401,1696.5,1696.1,4.64499]
[1745341380968,6.04401,1696.5,1696.3,1.17827]
[1745341381161,6.04401,1696.5,1696.4,1.17823]
[1745341381570,4.38601,1696.5,1696.4,1.17823]
[1745341381775,3.2078,1696.5,1696.4,1.17823]
[1745341382079,0.00883939,1696.6,1696.5,1.17816]
[1745341382262,3.2078,1696.9,1696.8,1.17795]
[1745341383170,3.2078,1697.2,1697.1,1.17768]
[1745341383561,0.00883939,1697.3,1697.1,1.17768]
[1745341383764,0.00883939,1697.3,1697.2,2.94918]
[1745341384268,1.6994,1697.7,1697.6,1.1774]
[1745341384471,42.4994,1697.7,1697.6,1.1774]
[1745341384666,40.8,1697.7,1697.6,1.1774]
[1745341384970,2.94247,1698.2,1697.4,1.66]
[1745341384971,4.9072,1698.0,1697.5,2.94366]
[1745341385178,3.2078,1698.0,1697.6,1.66]
[1745341385674,3.2078,1697.8,1697.5,4.642]
[1745341385882,2.87675,1697.7,1697.5,4.642]
[1745341386070,9.19875,1697.7,1697.5,1.66]
[1745341386273,9.19875,1697.7,1697.5,2.83744]
[1745341386274,8.0214,1697.7,1697.5,2.83744]
[1745341386575,9.19874,1697.7,1697.5,1.66]
[1745341386766,8.0214,1697.7,1697.5,1.66]
[1745341386968,9.19874,1697.7,1697.5,1.66]
[1745341387465,8.0214,1697.7,1697.2,4.642]
[1745341387666,9.19876,1697.7,1697.4,1.17753]
[1745341387868,9.19876,1697.7,1697.3,2.79646]